Cogmind - Beta 16 @@@ ROGUE MODE // 2026.01.26 @ 18:09:29 Player: Xcalibur Result: Destroyed by S-10 Pest with Light Assault Rifle Performance ------------- Evolutions (0) 0 Regions Visited (4) 800 Robots Destroyed (16) 80 Value Destroyed (256) 256 Prototype IDs (27) 540 Alien Tech Used (0) 0 Bonus (300) 300 TOTAL SCORE: 1976 Bonus ------- Aligned with FarCom 300 Cogmind --------- Core Integrity 0/250 Matter 300/300 Energy 99/100 System Corruption 1% Temperature Cool (0) Movement Core (50) Location -9/Mines Parts ------- > --- POWER (1) -------- (None) > --- PROPULSION (2) --- (None) > --- UTILITY (2) ------ (None) > --- WEAPON (2) ------- (None) > --- INVENTORY (5) ---- Flying Fortress v7 Signal Interpreter Peak State ------------ > --- POWER ------------ Ion Engine > --- PROPULSION ------- Light Treads Light Treads > --- UTILITY ---------- Large Storage Unit Core Shielding > --- WEAPON ----------- Spread Laser Plasma Cutter > --- INVENTORY -------- Ion Engine Nuclear Core Fission Core Light Fission Core Light Treads Compact Wheel Flying Fortress v7 High-capacity Matter Pod Signal Interpreter Grenade Launcher Mining Laser [Rating: 14] Favorites ----------- Power Ion Engine Engine Ion Engine Propulsion Light Treads Treads Light Treads Utility Seismic Detector Device Seismic Detector Storage Small Storage Unit Protection Core Shielding Weapon Assault Rifle Energy Gun Medium Laser Ballistic Gun Assault Rifle Special Weapon Mining Laser Build | -11 -10 -10 -10 -9 ------- Run | Yrd Mat Min Exi Min Slots Evolved . | . . . . . Power . | . . . . . Propulsion . | . . . . . Utility . | . . . . . Weapon . | . . . . . Parts Attached 13 | 7 2 . . 4 Power 1 | 1 . . . . Engine 1 | 1 . . . . Core . | . . . . . Reactor . | . . . . . Propulsion 2 | 2 . . . . Treads 2 | 2 . . . . Leg . | . . . . . Wheel . | . . . . . Hover . | . . . . . Flight . | . . . . . Utility 5 | 2 2 . . 1 Device 2 | 1 1 . . . Storage 2 | 1 1 . . . Processor . | . . . . . Hackware . | . . . . . Protection 1 | . . . . 1 Artifact . | . . . . . Weapon 5 | 2 . . . 3 Energy Gun 2 | 1 . . . 1 Energy Cannon . | . . . . . Ballistic Gun 1 | 1 . . . . Ballistic Cannon . | . . . . . Launcher . | . . . . . Special Weapon 2 | . . . . 2 Impact Weapon . | . . . . . Slashing Weapon . | . . . . . Piercing Weapon . | . . . . . Special Melee Weapon . | . . . . . Unidentified Prototypes . | . . . . . Parts Lost 4 | . 1 . . 3 Power 1 | . . . . 1 Propulsion 1 | . . . . 1 Utility 1 | . 1 . . . Weapon 1 | . . . . 1 Highest Loss Streak 3 | . 1 . . 3 To Critical Strikes . | . . . . . Average Backups 8 | 2 7 8 11 10 Power 2 | . 1 1 3 3 Propulsion 2 | 1 2 2 2 2 Utility 2 | . 2 3 3 2 Weapon 1 | . 1 2 2 1 Tool/Special . | . . . . . Unused Backups 12 | . 2 . . 10 Power 4 | . . . . 4 Propulsion 4 | . 1 . . 3 Utility 3 | . 1 . . 2 Weapon 1 | . . . . 1 Tool/Special . | . . . . . Average Slot Usage (%) 87 | . 97 100 74 79 Engine 13 | . 14 14 14 11 Treads 27 | . 28 28 28 23 Device 11 | . 11 14 14 1 Storage 13 | . 14 14 14 12 Protection 1 | . . . . 10 Energy Gun 9 | . 14 14 1 10 Ballistic Gun 8 | . 14 14 1 . Special Weapon 1 | . . . . 9 Peak Build Rating 14 | 7 8 7 10 14 Average Rating 7 | 5 7 7 8 11 On Entrance 6 | . 7 7 7 10 Avg Prop Armor Cover (%) 10 | . 10 . . . Naked Turns 18 | . . . . 18 Heaviest Build 30 | 15 30 30 30 30 Greatest Support 40 | 40 40 40 40 40 Greatest Overweight (x) 1 | 1 . . . 1 Average Overweight (x) . | . . . . . Largest Inventory Capacity 15 | 8 15 15 15 15 Average Capacity 11 | 7 8 15 15 13 Most Carried 15 | 5 8 8 15 15 Average Carried 9 | 3 7 8 12 12 Final Capacity 15 | 8 15 15 15 5 Final Carried 15 | 5 8 8 15 5 Class Distribution -------------------- 100% | Mutant Dominant Class ---------------- Mutant | -10/Materials Mutant | -10/Mines Mutant | -10/Exiles Mutant | -9/Mines Resources | -11 -10 -10 -10 -9 ----------- Run | Yrd Mat Min Exi Min Matter Collected 651 | 285 106 . 220 40 Remotely . | . . . . . Salvage Created 474 | 133 341 . . . Parts 31 | 8 23 . . . Haulers Intercepted 1 | . 1 . . . Recyclers Shooed 1 | 1 . . . . Parts Field Recycled . | . . . . . Retrieved Matter . | . . . . . Parts Self-Destructed . | . . . . . Prevented . | . . . . . Parts Restored . | . . . . . Kills | -11 -10 -10 -10 -9 ------- Run | Yrd Mat Min Exi Min Combat Hostiles Destroyed 9 | . 9 . . . Guns 9 | . 9 . . . Classes Destroyed 6 | 2 4 . . . Tunneler 3 | 2 1 . . . Hauler 1 | . 1 . . . Recycler 1 | 1 . . . . Watcher 2 | . 2 . . . Swarmer 6 | . 6 . . . Grunt 3 | . 3 . . . Best Kill Streak 3 | 3 3 . . . Combat Bots Only 3 | . 3 . . . Max Kills in Single Turn 2 | 1 2 . . . Gunslinging . | . . . . . Exploded . | . . . . . Melee . | . . . . . Uniques/NPCs Destroyed . | . . . . . Combat | -11 -10 -10 -10 -9 -------- Run | Yrd Mat Min Exi Min Hostile Shots Fired 68 | . 42 . . 26 Missed 17 | . 9 . . 8 Hits 51 | . 33 . . 18 Melee 3 | . . . . 3 Projectile 48 | . 33 . . 15 AOE 8 | . . . . 8 Part Disruptions 1 | . 1 . . . Damage Taken 834 | . 382 . . 452 Core 253 | . 50 . . 203 Absorbed by Shields . | . . . . . Redirected to Shielding 23 | . . . . 23 Core Remaining (%) 100 | 100 . . . . Volleys Fired 32 | 5 27 . . . Largest 2 | 2 2 . . . Hottest 70 | 70 70 . . . Shots Fired 64 | 10 54 . . . Gun 64 | 10 54 . . . Cannon . | . . . . . Launcher . | . . . . . Special . | . . . . . Kinetic 32 | 5 27 . . . Thermal 32 | 5 27 . . . Explosive . | . . . . . Electromagnetic . | . . . . . Robot Hit Streak 10 | 4 10 . . . Robot Miss Streak 4 | 1 4 . . . Penetration Max . | . . . . . Secondary Targets . | . . . . . Shots Hit Robots 36 | 6 30 . . . Core Hits 20 | 4 16 . . . Critical Kills 2 | . 2 . . . Critical Parts Destroyed . | . . . . . Critical Strikes 3 | . 3 . . . Burn 1 | . 1 . . . Destroy 2 | . 2 . . . Melee Attacks . | . . . . . Impact . | . . . . . Slashing . | . . . . . Piercing . | . . . . . Sneak Attacks . | . . . . . Combat Hostiles . | . . . . . Follow-up Attacks . | . . . . . Damage Inflicted 466 | 85 381 . . . Guns 464 | 85 379 . . . Cannons . | . . . . . Explosions . | . . . . . Melee . | . . . . . Ramming 2 | . 2 . . . Kinetic 202 | 47 155 . . . Thermal 262 | 38 224 . . . Explosive . | . . . . . Electromagnetic . | . . . . . Impact . | . . . . . Slashing . | . . . . . Piercing . | . . . . . Highest Corruption 1 | . 1 1 1 1 Average Corruption 1 | . 1 1 1 1 Corruption Purged . | . . . . . Corruption Blocked . | . . . . . Effects 4 | . . . 3 1 Message Errors 2 | . . . 1 1 Matter Fused 2 | . . . 2 . Overload Shots . | . . . . . Overflow Damage 5 | . 5 . . . Projectiles . | . . . . . Explosions 5 | . 5 . . . Melee . | . . . . . Knockbacks . | . . . . . Impact . | . . . . . Kinetic . | . . . . . Secondary . | . . . . . Self-Inflicted Damage 70 | . 70 . . . Shots 3 | . 3 . . . Rammed 2 | . 1 1 . . Targets Rammed 2 | . 1 1 . . Kicked . | . . . . . Crushed . | . . . . . Highest Temperature 84 | 27 84 . . 2 Average Temperature 20 | 12 22 . . 2 Received Heat Transfer 129 | . 69 . . 60 Siege Activations . | . . . . . Martial Activations . | . . . . . Shielding Activations . | . . . . . Robots Disrupted . | . . . . . Combat Hostiles . | . . . . . Robots Corrupted . | . . . . . Combat Hostiles . | . . . . . Parts Fried . | . . . . . Impact Corruptions . | . . . . . Robots Melted . | . . . . . Combat Hostiles . | . . . . . Parts Melted 2 | . 2 . . . Heat Transferred 851 | 111 740 . . . Parts Sabotaged . | . . . . . Parts Stolen . | . . . . . Parts Stripped . | . . . . . Power Chain Reactions 1 | . 1 . . . Alert | -11 -10 -10 -10 -9 ------- Run | Yrd Mat Min Exi Min Maximum Alert Level . | . . . . . Low Security (%) 100 | 100 100 100 . 100 Level 1 . | . . . . . Level 2 . | . . . . . Level 3 . | . . . . . Level 4 . | . . . . . Level 5 . | . . . . . High Security . | . . . . . Max Security . | . . . . . Peak Influence 157 | 5 157 55 . . Initial 55 | . . 55 . . Average 56 | . 80 49 . . Influence Increases 356 | 15 341 . . . Destroy 0b10 Robot/C 180 | . 180 . . . Destroy 0b10 Robot/NC 35 | 15 20 . . . Destroy Leader 36 | . 36 . . . Successful Hack 7 | . 7 . . . Select Force Hacks 30 | . 30 . . . Disable Machine 30 | . 30 . . . Destroy Structure 8 | . 8 . . . Lose Combat Pursuer 30 | . 30 . . . Influence Decreases 356 | 15 198 108 35 . Entered New Map 123 | . . 88 35 . Time Decay 223 | 15 188 20 . . Lost Part 10 | . 10 . . . Squads Dispatched 3 | . 3 . . . Investigation 1 | . 1 . . . Extermination . | . . . . . Reinforcement 2 | . 2 . . . Assault . | . . . . . Garrison . | . . . . . Intercept . | . . . . . Searches Triggered . | . . . . . Construction Impeded . | . . . . . Haulers Reinforced . | . . . . . Active Scanning Responses . | . . . . . Cargo Convoy Interrupts . | . . . . . Stealth | -11 -10 -10 -10 -9 --------- Run | Yrd Mat Min Exi Min Distress Signals 1 | . . . . 1 Communications Jammed . | . . . . . Distress Signals . | . . . . . Times Spotted 37 | . 18 . . 19 Peak Tracking Total 15 | . 4 . . 15 Tactical Retreats 2 | . 1 . . 1 Traps | -11 -10 -10 -10 -9 ------- Run | Yrd Mat Min Exi Min Traps Triggered . | . . . . . Indirectly . | . . . . . Trap Hack Attempts . | . . . . . Triggered . | . . . . . Disarmed . | . . . . . Reprogrammed . | . . . . . Reused . | . . . . . Traps Extracted . | . . . . . Installed . | . . . . . Triggered . | . . . . . Machines | -11 -10 -10 -10 -9 ---------- Run | Yrd Mat Min Exi Min Machines Disabled 2 | . 2 . . . Max in Single Turn 2 | . 2 . . . Machines Repaired . | . . . . . Machines Dismantled . | . . . . . Machines Sabotaged . | . . . . . Overloaded Fab Kills . | . . . . . Hacking | -11 -10 -10 -10 -9 --------- Run | Yrd Mat Min Exi Min Machines Accessed 7 | . 5 . 2 . Terminals 4 | . 4 . . . Fabricators . | . . . . . Repair Stations . | . . . . . Recycling Units 1 | . 1 . . . Scanalyzers . | . . . . . Garrison Access . | . . . . . Total Hacks 17 | . 15 . 2 . Successful 10 | . 8 . 2 . Failed 7 | . 7 . . . Catastrophic 1 | . 1 . . . Database Lockouts . | . . . . . Manual 6 | . 5 . 1 . Terminals 10 | . 10 . . . Fabricators . | . . . . . Repair Stations . | . . . . . Recycling Units 5 | . 5 . . . Scanalyzers . | . . . . . Garrison Access . | . . . . . Terminal Hacks 7 | . 5 . 2 . Record 1 | . . . 1 . Prototype ID Bank 2 | . 2 . . . Branch Access Points 1 | . 1 . . . Locate Traps 2 | . 2 . . . Proto ID Catalog 1 | . . . 1 . Fabricator Hacks . | . . . . . Repair Station Hacks . | . . . . . Recycling Unit Hacks . | . . . . . Scanalyzer . | . . . . . Garrison Access Hacks . | . . . . . Unauthorized Hacks 3 | . 3 . . . Terminals 2 | . 2 . . . Botnet 2 | . 2 . . . Fabricators . | . . . . . Repair Stations . | . . . . . Recycling Units 1 | . 1 . . . Tunnel 1 | . 1 . . . Scanalyzers . | . . . . . Garrison Access . | . . . . . Data Cores Recovered . | . . . . . Used . | . . . . . Hacking Detections 5 | . 5 . . . Full Trace Events . | . . . . . Feedback Events . | . . . . . Feedback Blocked . | . . . . . Robot Schematics Acquired . | . . . . . Robots Built . | . . . . . Authchips . | . . . . . Time . | . . . . . Total Robot Build Rating . | . . . . . Part Schematics Acquired . | . . . . . Parts Built . | . . . . . Authchips . | . . . . . Time . | . . . . . Total Part Build Rating . | . . . . . Part Studies Acquired . | . . . . . Parts Repaired . | . . . . . Time . | . . . . . Parts Recycled . | . . . . . Recycled Matter . | . . . . . Retrieved Matter . | . . . . . Retrieved Components . | . . . . . Parts Scanalyzed . | . . . . . Part Schematics Acquired . | . . . . . Parts Damaged . | . . . . . Bothacking | -11 -10 -10 -10 -9 ------------ Run | Yrd Mat Min Exi Min Used RIF Installer . | . . . . . Robots Hacked . | . . . . . Non-combat . | . . . . . Combat . | . . . . . Robot Hacks Applied . | . . . . . Relay Couplers Released . | . . . . . Fabnet Peak Effective % . | . . . . . Robots Rewired . | . . . . . Allies Hacked . | . . . . . Hacks Repelled . | . . . . . Allies | -11 -10 -10 -10 -9 -------- Run | Yrd Mat Min Exi Min Total Allies . | . . . . . Largest Group . | . . . . . Highest-Rated Group . | . . . . . Highest-Rated Ally . | . . . . . Total Orders . | . . . . . Ally Attacks . | . . . . . Total Damage . | . . . . . Kills . | . . . . . Allies Corrupted . | . . . . . Allies Melted . | . . . . . Intel | -11 -10 -10 -10 -9 ------- Run | Yrd Mat Min Exi Min Active Infowar (turns) 1040 | 31 524 40 429 16 Seismic 1040 | 31 524 40 429 16 Robot Analysis Total . | . . . . . Derelict Logs Recovered . | . . . . . Drone Launches . | . . . . . Drone Recoveries . | . . . . . Exploration | -11 -10 -10 -10 -9 ------------- Run | Yrd Mat Min Exi Min Turns Passed 1329 | 115 604 40 429 141 Spaces Moved 697 | 59 240 25 266 107 Core 46 | 11 . . . 35 Treads 651 | 48 240 25 266 72 Legs . | . . . . . Wheels . | . . . . . Hover . | . . . . . Flight . | . . . . . Fastest Speed 50 | 50 160 160 160 50 Average Speed 153 | 142 160 160 160 124 Slowest Speed 240 | 160 160 160 160 240 Overloaded Moves . | . . . . . Propulsion Burnouts . | . . . . . Robots Hopped . | . . . . . Potential Cave-ins . | . . . . . Cave-ins Triggered . | . . . . . Exploration Rate (%) 32 | 4 56 10 61 33 Regions Visited 4 Branch Regions 3 Pre-discovered Areas 2 | . 1 . 1 . Known Exits Taken 1 | . 1 . . . Unknown Exits Taken 3 | 1 . 1 1 . Scrap Searched 1 | . . . . 1 Spaces Dug . | . . . . . Terrain Destroyed 4 | . 4 . . . Melee . | . . . . . Projectile . | . . . . . AOE 4 | . 4 . . . Terrain Rammed . | . . . . . Walls Destroyed . | . . . . . Machines Disabled . | . . . . . Actions | -11 -10 -10 -10 -9 --------- Run | Yrd Mat Min Exi Min Total 894 | 78 407 25 271 113 Wait 125 | . 125 . . . Move 693 | 58 239 24 265 107 Hop . | . . . . . Pick Up 18 | 8 6 . 4 . Fast Attach 8 | 4 2 . . 2 Attach 4 | 3 1 . . . Detach . | . . . . . Swap 3 | . 1 . . 2 Drop 9 | . 5 . 2 2 Fire 32 | 5 27 . . . Melee . | . . . . . Ram . | . . . . . Kick . | . . . . . Crush 2 | . 1 1 . . Escape Stasis . | . . . . . Rewire . | . . . . . Trap . | . . . . . Miscellaneous . | . . . . . Route ------- -11/Scrapyard -10/Materials (discovered 3 exits: [*Mat] / *Min x2) -10/Mines -10/Exiles -9/Mines (discovered 1 exit: [*Mat]) History --------- Turn | Location | Event 8 | -11/Scrapyard | Discovered new exit (range 15) 116 | -11/Scrapyard | Entered Materials 318 | -10/Materials | Build established: Mutant 524 | -10/Materials | Discovered new exit (range 16) 528 | -10/Materials | Identified exit to Mines 720 | -10/Materials | Entered Mines 754 | -10/Mines | Deemed a non-threat by the Exiles lab entrance 754 | -10/Mines | Discovered new exit (range 5) 760 | -10/Mines | Entered Exiles 804 | -10/Exiles | Met 8R-AWN 830 | -10/Exiles | Met EX-HEX 892 | -10/Exiles | Met EX-DEC 902 | -10/Exiles | Learned location of Zion (-6) 929 | -10/Exiles | Met EX-BIN 952 | -10/Exiles | Aligned with FarCom system 953 | -10/Exiles | Given EX-Vault access code 992 | -10/Exiles | Opened EX-Vault 1000 | -10/Exiles | Found Flying Fortress v7 1034 | -10/Exiles | Warned to stay clear of 0b10 Research branches 1058 | -10/Exiles | Exiles lab attacked by MAIN.C 1177 | -10/Exiles | Discovered new exit (range 10) 1189 | -10/Exiles | Left Exiles lab with Flying Fortress v7 1189 | -10/Exiles | Entered Mines 1263 | -9/Mines | Assembled infested the area 1312 | -9/Mines | Core integrity fell below 50% 1312 | -9/Mines | Released all parts (4) 1322 | -9/Mines | Core integrity fell below 20% 1328 | -9/Mines | Discovered new exit (range 13) 1330 | -9/Mines | Destroyed by S-10 Pest with Light Assault Rifle Last Messages --------------- 01301_ as-58181 destroyed. 01301_ as-59895 destroyed. 01301_ as-72588 destroyed. 01303_ as-67123 destroyed. 01303_ as-41581 destroyed. 01307_ Ion Engine destroyed. 01307_ as-79654 destroyed. 01309_ U-05 Engineer destroyed. 01309_ Lgt. Treads destroyed. 01309_ Mining Laser destroyed. 01310_ Dropped Rigged Nuclear Core. 01310_ U-05 Engineer lays Concrete. 01311_ U-05 Engineer destroyed. 01312_ Released Spread Laser. 01312_ Released Lgt. Treads. 01312_ Released Lrg. Storage Unit. 01312_ Released Core Shielding. 01318_ S-10 Pest destroyed. 01328_ EXIT=FOUND 01328_ T-07 Excavator is excavating. Map ----- +----------------------------------------------------+ | ??????????????????????????????????????? | | ??????????????????????????????????????? | | ??????????????????????????????????????? | | ??????????????????????????????????????? | | ??????????????????????????????????????? | | ??????????????????????????????????????? | | ??????????????????????????????????????? | | ??????????????????????????????????????? | | ??????????????????????????????????????? | | ??????????????????????????????????????? | | ??????????????????????????????????????? | | ??????????????????????????????????????? | | ??????????????????????????????????????? | | ???????????###????????????????????????? | | ??????????? #???????????????????????? | | ???????????? #??????????????????????? | | ???????????? < ??????????????????????? | | ???????????? ??????????????????????? | | ???????????? #??????????????????????? | | ????????????# #??????????????????????? | | ????????????# #??????????????????????? | | ????????????# #??????????????????????? | | ????????????# #??????????????????????? | | ????????????# #??????????????????????? | | ????????????# $#??????????????????????? | | ????????????# @#?????????ss???????????? | | ????????????# #??????????????????????? | | ???????###### #?????????s????????????? | | ???????# ####??????s????????????? | | ???????# s #???????????????????? | | ???????# #### #???????????????????? | | ????????????####s #???????????????????? | | ???????????????#s ##??????????????????? | | ???????????????# ##??????###????????? | | ??????#####????# %= #???##? ##???????? | | ?????## ##??## [ #?## ???????? | | ????## #### ### ????????? | | ???## ### #????????? | | ???# ##?? """ #????????? | | ???# ## #??? """ ##???????? | | ???## #?## ##??# """ #???????? | | ????###???##### #### ##??????? | | ??????????????## ## #??????? | | ???????????????## #??????? | | ????????????????### ##??????? | | ??????????????????#### = ###????? | | ????????????????????# =!] #????? | | ????????????????###?## *! ##???? | | ???????????????## #?## | #???? | | ??????#####????# ?# #???? | +----------------------------------------------------+ Best States ------------- Heat Dissipation 25 Energy Generation 10 Energy Capacity 250 Matter Stores 300 Matter Capacity 300 Sight Range 16 Terrain Scan Density 10 Core Shielding 20 Evasion (%) 50 Recoil Reduction 2 Item Schematics ----------------- None Robot Schematics ------------------ None Fabricated ------------ Nothing Repaired ---------- Nothing Studied --------- None Alien Tech Used ----------------- None Achievements -------------- None Challenges ------------ None Game ------ Seed DataZioniteAirjet Manual? 0 Play Time 00:12:19 Cumulative 151.8 hours Start 2026.01.26 @ 17:51:08 End 2026.01.26 @ 18:09:29 Sessions 1 Manual Loads 0 Difficulty Rogue Special Mode None Game No. 62 Rogue 62 Adventurer 0 Explorer 0 Win Type - Total 7 Types 6/0/0/1/0/0/0/0/0/0 Lore% 51 Gallery% 55 Achievement% 45 Wizard Run 0 Options --------- Layout 0 ASCII 0 Keyboard 0 Movement Arrows Keybinds 0 Fullscreen 2 Font 18/Terminus Map View 76x50 Zoom Use 0% Tactical HUD 1 Map Filters NONE Filters NONE Steam 1 RUN: 7df19feb-5c98-438e-a5b4-ebbde6d54ff4